bitfinex-derivatives/quotes_BNBF0:USTF0_20250603
["timestamp","ask_amount","ask_price","bid_price","bid_amount"]
[1748991753861,1.01666321,660.91,660.85,0.30264053]
[1748991754061,1.01666321,660.9,660.85,0.30264053]
[1748991754260,1.01666321,660.89,660.85,0.30264053]
[1748991754459,1.01666321,660.88,660.85,0.30264053]
[1748991754663,1.01666321,660.87,660.85,0.30264053]
[1748991754861,1.01666321,660.86,660.85,0.30264053]
[1748991755760,1.0162103,660.86,660.85,0.30264053]
[1748991757464,1.50523138,661.25,660.85,0.30264053]
[1748991757663,1.12874517,661.11,660.85,0.30264053]
[1748991757863,1.01571596,661.1,660.85,0.30264053]
[1748991758059,1.01571596,661.09,660.85,0.30264053]
[1748991758262,1.01571596,661.08,660.85,0.30264053]
[1748991758465,1.01571596,661.07,660.85,0.30264053]
[1748991758663,1.01571596,661.06,660.85,0.30264053]
[1748991758862,1.01571596,661.05,660.85,0.30264053]
[1748991759062,1.01571596,661.04,660.85,0.30264053]
[1748991759362,1.01571596,661.03,660.85,0.30264053]
[1748991759559,1.01571596,661.02,660.85,0.30264053]
[1748991759760,1.01571596,661.01,660.85,0.30264053]
[1748991759965,1.01571596,661.0,660.85,0.30264053]
[1748991760263,1.01571596,660.99,660.85,0.30264053]
[1748991760463,1.01571596,660.98,660.85,0.30264053]
[1748991760657,1.01571596,660.97,660.85,0.30264053]
[1748991760856,1.01571596,660.96,660.85,0.30264053]
[1748991761061,1.01571596,660.95,660.85,0.30264053]
[1748991761263,1.12874517,661.12,660.85,0.30264053]
[1748991761264,1.01571596,660.94,660.85,0.30264053]
[1748991761562,1.01571596,660.93,660.85,0.30264053]
[1748991761763,1.01571596,660.92,660.85,0.30264053]
[1748991761962,1.01571596,660.91,660.85,0.30264053]
[1748991762163,1.01571596,660.9,660.85,0.30264053]
[1748991762359,1.01571596,660.89,660.85,0.30264053]
[1748991762562,1.01571596,660.88,660.85,0.30264053]
[1748991762858,1.12874517,661.12,660.85,0.30264053]
[1748991763062,1.01444942,661.11,660.85,0.30264053]
[1748991763263,1.12874517,661.09,660.85,0.30264053]
[1748991763564,1.01444942,661.08,660.85,0.30264053]
[1748991763758,1.01444942,661.07,660.85,0.30264053]
[1748991763961,1.01444942,661.06,660.85,0.30264053]
[1748991764163,1.12874517,661.09,660.85,0.30264053]
[1748991764164,1.01444942,661.05,660.85,0.30264053]
[1748991764363,1.01444942,661.04,660.85,0.30264053]
[1748991764563,1.01444942,661.03,660.85,0.30264053]
[1748991764764,1.01444942,661.02,660.85,0.30264053]
[1748991764965,1.01444942,661.01,660.85,0.30264053]
[1748991765165,1.01444942,661.0,660.85,0.30264053]
[1748991765362,1.01444942,660.99,660.85,0.30264053]
[1748991765557,1.01444942,660.98,660.85,0.30264053]
[1748991765765,1.01444942,660.97,660.85,0.30264053]
[1748991765960,1.01444942,660.96,660.85,0.30264053]
[1748991766160,1.01444942,660.95,660.85,0.30264053]
[1748991766366,1.01444942,660.94,660.85,0.30264053]
[1748991766565,1.01444942,660.93,660.85,0.30264053]
[1748991766763,1.01444942,660.92,660.85,0.30264053]
[1748991766966,1.01444942,660.91,660.85,0.30264053]
[1748991767266,3.76960388,661.86,660.85,0.30264053]
[1748991767267,1.01444942,660.9,660.85,0.30264053]
[1748991767467,1.01444942,660.89,660.85,0.30264053]
[1748991767667,1.12874517,661.1,660.85,0.30264053]
[1748991767866,1.01367534,661.09,660.85,0.30264053]
[1748991768167,1.01367534,661.08,660.85,0.30264053]
[1748991768467,1.01367534,661.07,660.85,0.30264053]
[1748991768668,1.01367534,661.06,660.85,0.30264053]
[1748991768868,1.01367534,661.05,660.85,0.30264053]
[1748991769062,1.01367534,661.04,660.85,0.30264053]
[1748991769267,1.50523138,661.22,660.85,0.30264053]
[1748991769467,1.12702619,661.11,660.85,0.30264053]
[1748991769664,1.01355458,661.1,660.85,0.30264053]
[1748991769870,1.01355458,661.09,660.85,0.30264053]
[1748991770168,1.01355458,661.08,660.85,0.30264053]
[1748991770363,1.01355458,661.07,660.85,0.30264053]
[1748991770562,1.01355458,661.06,660.85,0.30264053]
[1748991770766,1.01355458,661.05,660.85,0.30264053]
[1748991770963,1.01355458,661.04,660.85,0.30264053]
[1748991771168,1.01355458,661.03,660.85,0.30264053]
[1748991771362,1.01355458,661.02,660.85,0.30264053]
[1748991771571,1.01355458,661.01,660.85,0.30264053]
[1748991771864,1.01355458,661.0,660.85,0.30264053]
[1748991772067,1.01355458,660.99,660.85,0.30264053]
[1748991772268,1.01355458,660.98,660.85,0.30264053]
[1748991772564,1.01355458,660.97,660.85,0.30264053]
[1748991772766,1.01355458,660.96,660.85,0.30264053]
[1748991772965,1.01355458,660.95,660.85,0.30264053]
[1748991773169,1.50523138,661.25,660.85,0.30264053]
[1748991773367,1.12664262,661.12,660.85,0.30264053]
[1748991773568,1.01304722,661.11,660.85,0.30264053]
[1748991773770,1.01304722,661.1,660.85,0.30264053]
[1748991773969,1.01304722,661.09,660.85,0.30264053]
[1748991774169,1.01304722,661.08,660.85,0.30264053]
[1748991774467,1.01304722,661.07,660.85,0.30264053]
[1748991774671,1.01304722,661.06,660.85,0.30264053]
[1748991774866,1.01304722,661.05,660.85,0.30264053]
[1748991775072,1.01304722,661.04,660.85,0.30264053]
[1748991775372,1.01304722,661.03,660.85,0.30264053]
[1748991775574,1.01304722,661.02,660.85,0.30264053]
[1748991775773,1.01304722,661.01,660.85,0.30264053]
[1748991775971,1.01304722,661.0,660.85,0.30264053]
[1748991776169,1.01304722,660.99,660.85,0.30264053]
[1748991776369,1.01304722,660.98,660.85,0.30264053]
[1748991776568,1.01304722,660.97,660.85,0.30264053]
[1748991776869,1.12664262,661.23,660.85,0.30264053]
[1748991777073,1.01310651,661.22,660.85,0.30264053]
[1748991777274,1.01310651,661.21,660.85,0.30264053]
[1748991777575,1.01310651,661.2,660.85,0.30264053]
[1748991777775,1.01310651,661.19,660.85,0.30264053]
[1748991777976,1.01310651,661.18,660.85,0.30264053]
[1748991778275,1.01310651,661.17,660.85,0.30264053]
[1748991778470,1.01310651,661.16,660.85,0.30264053]
[1748991778675,1.01310651,661.15,660.85,0.30264053]
[1748991778875,1.01310651,661.14,660.85,0.30264053]
[1748991779078,1.01310651,661.13,660.85,0.30264053]
[1748991779277,1.01310651,661.12,660.85,0.30264053]
[1748991779477,1.01310651,661.11,660.85,0.30264053]
[1748991779676,1.01310651,661.1,660.85,0.30264053]
[1748991779981,1.01310651,661.09,660.85,0.30264053]
[1748991780178,1.01310651,661.08,660.85,0.30264053]
[1748991780379,1.01310651,661.07,660.85,0.30264053]
[1748991780579,1.01310651,661.06,660.85,0.30264053]
[1748991780779,1.12691525,661.26,660.85,0.30264053]
[1748991780975,1.12691525,661.22,660.85,0.30264053]
[1748991781174,1.0121709,661.21,660.85,0.30264053]
[1748991781376,1.0121709,661.2,660.85,0.30264053]
[1748991781574,1.0121709,661.19,660.85,0.30264053]
[1748991781774,1.0121709,661.18,660.85,0.30264053]
[1748991781974,1.0121709,661.17,660.85,0.30264053]
[1748991782179,1.12691525,661.23,660.85,0.30264053]
[1748991782180,1.0121709,661.16,660.85,0.30264053]
[1748991782376,1.0121709,661.15,660.85,0.30264053]
[1748991782577,1.0121709,661.14,660.85,0.30264053]
[1748991782781,1.0121709,661.13,660.85,0.30264053]
[1748991782979,1.0121709,661.12,660.85,0.30264053]
[1748991783277,1.0121709,661.11,660.85,0.30264053]
[1748991783477,1.0121709,661.1,660.85,0.30264053]
[1748991783682,1.01434963,661.09,660.85,0.30264053]
[1748991783984,1.01434963,661.08,660.85,0.30264053]
[1748991784181,1.01434963,661.07,660.85,0.30264053]
[1748991784378,1.12733156,661.21,660.85,0.30264053]
[1748991784379,1.01434963,661.06,660.85,0.30264053]
[1748991784682,1.12733156,661.21,660.85,0.30264053]
[1748991784683,1.01434963,661.05,660.85,0.30264053]
[1748991784885,1.01434963,661.04,660.85,0.30264053]
[1748991785085,3.76960388,661.85,660.85,0.30264053]
[1748991785086,1.01434963,661.03,660.85,0.30264053]
[1748991785384,1.01434963,661.02,660.85,0.30264053]
[1748991785585,1.01434963,661.01,660.85,0.30264053]
[1748991785885,1.01434963,661.0,660.85,0.30264053]
[1748991786087,1.01434963,660.99,660.85,0.30264053]
[1748991786286,1.01434963,660.98,660.85,0.30264053]
[1748991786482,1.01434963,660.97,660.85,0.30264053]
[1748991786682,1.01434963,660.96,660.85,0.30264053]
[1748991786885,1.01434963,660.95,660.85,0.30264053]
[1748991787080,1.01434963,660.94,660.85,0.30264053]
[1748991787284,1.12733156,661.13,660.85,0.30264053]
[1748991787580,1.01483907,661.12,660.85,0.30264053]
[1748991787785,1.01483907,661.11,660.85,0.30264053]
[1748991788085,1.01483907,661.1,660.85,0.30264053]
[1748991788281,1.01483907,661.09,660.85,0.30264053]
[1748991788480,1.01483907,661.08,660.85,0.30264053]
[1748991788785,1.01483907,661.07,660.85,0.30264053]
[1748991788986,1.01483907,661.06,660.85,0.30264053]
[1748991789185,1.12801707,661.12,660.85,0.30264053]
[1748991789186,1.01483907,661.05,660.85,0.30264053]
[1748991789487,1.01483907,661.04,660.85,0.30264053]
[1748991789681,1.01483907,661.03,660.85,0.30264053]
[1748991789881,1.01483907,661.02,660.85,0.30264053]
[1748991790085,1.01483907,661.01,660.85,0.30264053]
[1748991790383,1.01483907,661.0,660.85,0.30264053]
[1748991790583,1.01483907,660.99,660.85,0.30264053]
[1748991790781,1.01483907,660.98,660.85,0.30264053]
[1748991790983,1.01483907,660.97,660.85,0.30264053]
[1748991791189,1.01483907,660.96,660.85,0.30264053]
[1748991791389,1.50523138,661.31,660.85,0.30264053]
[1748991791584,1.12854722,661.16,660.85,0.30264053]
[1748991791783,1.01543468,661.15,660.85,0.30264053]
[1748991791982,1.01543468,661.14,660.85,0.30264053]
[1748991792181,1.01543468,661.13,660.85,0.30264053]
[1748991792486,1.01543468,661.12,660.85,0.30264053]
[1748991792686,1.01543468,661.11,660.85,0.30264053]
[1748991792986,1.12854722,661.16,660.85,0.30264053]
[1748991792987,1.01543468,661.1,660.85,0.30264053]
[1748991793288,1.01543468,661.09,660.85,0.30264053]
[1748991793487,1.01543468,661.08,660.85,0.30264053]
[1748991793684,1.01543468,661.07,660.85,0.30264053]
[1748991793889,1.01543468,661.06,660.85,0.30264053]
[1748991794082,1.01543468,661.05,660.85,0.30264053]
[1748991794287,1.01543468,661.04,660.85,0.30264053]
[1748991794487,1.01543468,661.03,660.85,0.30264053]
[1748991794689,1.01543468,661.02,660.85,0.30264053]
[1748991794989,1.01543468,661.01,660.85,0.30264053]
[1748991795190,1.01543468,661.0,660.85,0.30264053]
[1748991795488,1.01602173,660.99,660.85,0.30264053]
[1748991795686,1.01602173,660.98,660.85,0.30264053]
[1748991795883,1.01602173,660.97,660.85,0.30264053]
[1748991796089,1.01602173,660.96,660.85,0.30264053]
[1748991796288,1.01602173,660.95,660.85,0.30264053]
[1748991796489,1.01602173,660.94,660.85,0.30264053]
[1748991796689,1.01602173,660.93,660.85,0.30264053]
[1748991796986,1.01602173,660.92,660.85,0.30264053]
[1748991797190,1.01602173,660.91,660.85,0.30264053]
[1748991797384,1.01602173,660.9,660.85,0.30264053]
[1748991797585,1.01602173,660.89,660.85,0.30264053]
[1748991797889,1.01602173,660.88,660.85,0.30264053]
[1748991798092,1.01602173,660.87,660.85,0.30264053]
[1748991798286,1.01602173,660.86,660.85,0.30264053]
[1748991799188,1.01664392,660.86,660.85,0.30264053]
[1748991803092,1.01723104,660.86,660.85,0.30264053]
[1748991803791,1.01721484,660.86,660.85,0.30264053]
[1748991807101,1.01745516,660.86,660.85,0.30264053]
[1748991810599,1.13146503,661.06,660.85,0.30264053]
[1748991810904,1.01657437,661.05,660.85,0.30264053]
[1748991811100,1.01657437,661.04,660.85,0.30264053]
[1748991811305,1.01657437,661.03,660.85,0.30264053]
[1748991811608,1.01657437,661.02,660.85,0.30264053]
[1748991811806,1.01657437,661.01,660.85,0.30264053]
[1748991812007,1.01657437,661.0,660.85,0.30264053]
[1748991812206,1.01657437,660.99,660.85,0.30264053]
[1748991812406,1.01657437,660.98,660.85,0.30264053]
[1748991812601,1.01657437,660.97,660.85,0.30264053]
[1748991812805,1.01657437,660.96,660.85,0.30264053]
[1748991813002,1.01657437,660.95,660.85,0.30264053]
[1748991813308,1.01657437,660.94,660.85,0.30264053]
[1748991813502,1.01657437,660.93,660.85,0.30264053]
[1748991813707,1.01657437,660.92,660.85,0.30264053]
[1748991813908,1.01657437,660.91,660.85,0.30264053]
[1748991814208,1.01657437,660.9,660.85,0.30264053]
[1748991814404,1.01657437,660.89,660.85,0.30264053]
[1748991814603,1.13134253,661.07,660.85,0.30264053]
[1748991814604,1.50523138,661.17,660.85,0.30264053]
[1748991814807,1.1312204,661.07,660.85,0.30264053]
[1748991815004,1.01587134,661.06,660.85,0.30264053]
[1748991815209,1.01587134,661.05,660.85,0.30264053]
[1748991815403,1.01587134,661.04,660.85,0.30264053]
[1748991815609,1.01587134,661.03,660.85,0.30264053]
[1748991815806,1.01587134,661.02,660.85,0.30264053]
[1748991816005,1.01587134,661.01,660.85,0.30264053]
[1748991816211,1.01587134,661.0,660.85,0.30264053]
[1748991816411,1.01587134,660.99,660.85,0.30264053]
[1748991816608,1.01587134,660.98,660.85,0.30264053]
[1748991816808,1.01587134,660.97,660.85,0.30264053]
[1748991817014,1.01587134,660.96,660.85,0.30264053]
[1748991817309,1.01587134,660.95,660.85,0.30264053]
[1748991817514,1.01587134,660.94,660.85,0.30264053]
[1748991817714,1.01587134,660.93,660.85,0.30264053]
[1748991817914,1.01587134,660.92,660.85,0.30264053]
[1748991818216,1.01587134,660.91,660.85,0.30264053]
[1748991818514,1.01664292,660.9,660.85,0.30264053]
[1748991818710,1.01664292,660.89,660.85,0.30264053]
[1748991818918,1.01664292,660.88,660.85,0.30264053]
[1748991819112,1.13113226,661.08,660.85,0.30264053]
[1748991819310,2.14777348,661.07,660.85,0.30264053]
[1748991819510,1.01664122,661.06,660.85,0.30264053]
[1748991819815,1.01664122,661.05,660.85,0.30264053]
[1748991820008,1.01664122,661.04,660.85,0.30264053]
[1748991820214,1.01664122,661.03,660.85,0.30264053]
[1748991820415,1.01664122,661.02,660.85,0.30264053]
[1748991820609,1.01664122,661.01,660.85,0.30264053]
[1748991820816,1.01664122,661.0,660.85,0.30264053]
[1748991821010,1.01664122,660.99,660.85,0.30264053]
[1748991821217,1.01664122,660.98,660.85,0.30264053]
[1748991821411,1.01664122,660.97,660.85,0.30264053]
[1748991821711,1.01664122,660.96,660.85,0.30264053]
[1748991821913,1.01664122,660.95,660.85,0.30264053]
[1748991822111,1.01664122,660.94,660.85,0.30264053]
[1748991822314,1.01664122,660.93,660.85,0.30264053]
[1748991822514,1.01666282,660.92,660.85,0.30264053]
[1748991822714,1.01666282,660.91,660.85,0.30264053]
[1748991822912,1.01666282,660.9,660.85,0.30264053]
[1748991823217,1.01666282,660.89,660.85,0.30264053]
[1748991823412,1.01666282,660.88,660.85,0.30264053]
[1748991823618,1.13109399,661.08,660.85,0.30264053]
[1748991823817,1.01664975,661.07,660.85,0.30264053]
[1748991824013,1.01664975,661.06,660.85,0.30264053]
[1748991824216,1.01664975,661.05,660.85,0.30264053]
[1748991824412,1.01664975,661.04,660.85,0.30264053]
[1748991824714,1.01664768,661.03,660.85,0.30264053]
[1748991824914,1.01664768,661.02,660.85,0.30264053]
[1748991825117,1.01664768,661.01,660.85,0.30264053]
[1748991825412,1.01664768,661.0,660.85,0.30264053]
[1748991825616,1.01664768,660.99,660.85,0.30264053]
[1748991825814,1.01664768,660.98,660.85,0.30264053]
[1748991826021,1.01664768,660.97,660.85,0.30264053]
[1748991826216,1.01664768,660.96,660.85,0.30264053]
[1748991826417,1.01665086,660.95,660.85,0.30264053]
[1748991826616,1.01665086,660.94,660.85,0.30264053]
[1748991826821,1.01665086,660.93,660.85,0.30264053]
[1748991827115,1.13108083,661.07,660.85,0.30264053]
[1748991827116,1.01665086,660.92,660.85,0.30264053]
[1748991827321,1.01665086,660.91,660.85,0.30264053]
[1748991827518,1.01665086,660.9,660.85,0.30264053]
[1748991827717,1.01665086,660.89,660.85,0.30264053]
[1748991827922,1.01665086,660.88,660.85,0.30264053]
[1748991828117,1.13108083,661.07,660.85,0.30264053]
[1748991828323,1.01672975,661.06,660.85,0.30264053]
[1748991828523,1.01672975,661.05,660.85,0.30264053]
[1748991828723,1.01672975,661.04,660.85,0.30264053]
[1748991828925,1.01672975,661.03,660.85,0.30264053]
[1748991829125,1.01672975,661.02,660.85,0.30264053]
[1748991829325,1.01672975,661.01,660.85,0.30264053]
[1748991829623,3.76960388,661.71,660.85,0.30264053]
[1748991829624,1.01672975,661.0,660.85,0.30264053]
[1748991829824,1.01672975,660.99,660.85,0.30264053]
[1748991830125,1.01672975,660.98,660.85,0.30264053]
[1748991830325,1.13108083,661.08,660.85,0.30264053]
[1748991830326,1.01672975,660.97,660.85,0.30264053]
[1748991830624,1.01675726,660.96,660.85,0.30264053]
[1748991830920,1.01675726,660.95,660.85,0.30264053]
[1748991831224,1.01675726,660.94,660.85,0.30264053]
[1748991831420,1.01675726,660.93,660.85,0.30264053]
[1748991831619,1.01675726,660.92,660.85,0.30264053]
[1748991831822,1.01675726,660.91,660.85,0.30264053]
[1748991832021,1.01675726,660.9,660.85,0.30264053]
[1748991832224,1.01675726,660.89,660.85,0.30264053]
[1748991832526,1.01675726,660.88,660.85,0.30264053]
[1748991832728,1.13114702,661.07,660.85,0.30264053]
[1748991832927,1.01685189,661.06,660.85,0.30264053]
[1748991833123,1.01685189,661.05,660.85,0.30264053]
[1748991833323,1.01685189,661.04,660.85,0.30264053]
[1748991833526,1.01685189,661.03,660.85,0.30264053]
[1748991833728,1.01685189,661.02,660.85,0.30264053]
[1748991833930,1.01685189,661.01,660.85,0.30264053]
[1748991834130,1.01685189,661.0,660.85,0.30264053]
[1748991834326,1.01685189,660.99,660.85,0.30264053]
[1748991834530,1.0168847,660.98,660.85,0.30264053]
[1748991834729,1.0168847,660.97,660.85,0.30264053]
[1748991834930,1.0168847,660.96,660.85,0.30264053]
[1748991835124,1.0168847,660.95,660.85,0.30264053]
[1748991835329,1.0168847,660.94,660.85,0.30264053]
[1748991835528,1.0168847,660.93,660.85,0.30264053]
[1748991835725,1.0168847,660.92,660.85,0.30264053]
[1748991836029,1.0168847,660.91,660.85,0.30264053]
[1748991836328,1.0168847,660.9,660.85,0.30264053]
[1748991836629,1.0168847,660.89,660.85,0.30264053]
[1748991836824,1.0168847,660.88,660.85,0.30264053]
[1748991837024,1.0168847,660.87,660.85,0.30264053]
[1748991837326,1.13127167,661.06,660.85,0.30264053]
[1748991837631,1.01698913,661.05,660.85,0.30264053]
[1748991837931,1.01698913,661.04,660.85,0.30264053]
[1748991838126,1.01698913,661.03,660.85,0.30264053]
[1748991838330,1.50523138,661.17,660.85,0.30264053]
[1748991838531,1.13138086,661.06,660.85,0.30264053]
[1748991838732,1.01699312,661.05,660.85,0.30264053]
[1748991838932,1.01699312,661.04,660.85,0.30264053]
[1748991839126,1.01699312,661.03,660.85,0.30264053]
[1748991839328,1.01699312,661.02,660.85,0.30264053]
[1748991839530,1.01699312,661.01,660.85,0.30264053]
[1748991839827,1.13138086,661.06,660.85,0.30264053]
[1748991839828,1.01705194,661.0,660.85,0.30264053]
[1748991840028,1.01705194,660.99,660.85,0.30264053]
[1748991840232,1.01705194,660.98,660.85,0.30264053]
[1748991840434,1.01705194,660.97,660.85,0.30264053]
[1748991840628,1.13144669,661.06,660.85,0.30264053]
[1748991840629,1.01705194,660.96,660.85,0.30264053]
[1748991840833,1.01705194,660.95,660.85,0.30264053]
[1748991841135,1.01704867,660.94,660.85,0.30264053]
[1748991841335,1.01704867,660.93,660.85,0.30264053]
[1748991841529,1.01704867,660.92,660.85,0.30264053]
[1748991841730,1.01704867,660.91,660.85,0.30264053]
[1748991841930,1.13144277,661.06,660.85,0.30264053]
[1748991841931,1.01704867,660.9,660.85,0.30264053]
[1748991842134,1.01704867,660.89,660.85,0.30264053]
[1748991842435,1.13144277,661.28,660.85,0.30264053]
[1748991842630,3.76960388,662.47,660.85,0.30264053]
[1748991842631,1.01692582,661.27,660.85,0.30264053]
[1748991842837,1.01692582,661.26,660.85,0.30264053]
[1748991843037,2.14836859,661.25,660.85,0.30264053]
[1748991843233,1.01692582,661.24,660.85,0.30264053]
[1748991843431,1.01692582,661.23,660.85,0.30264053]
[1748991843631,1.01692582,661.22,660.85,0.30264053]
[1748991843830,1.01692582,661.21,660.85,0.30264053]
[1748991844033,1.01692582,661.2,660.85,0.30264053]
[1748991844236,1.01692582,661.19,660.85,0.30264053]
[1748991844430,1.01692582,661.18,660.85,0.30264053]
[1748991844635,1.50523138,661.43,660.85,0.30264053]
[1748991844838,1.13082617,661.27,660.85,0.30264053]
[1748991845048,1.01757511,661.26,660.85,0.30264053]
[1748991845235,1.01757511,661.25,660.85,0.30264053]
[1748991845437,1.01757511,661.24,660.85,0.30264053]
[1748991845733,1.01757511,661.23,660.85,0.30264053]
[1748991845933,1.01757511,661.22,660.85,0.30264053]
[1748991846137,1.01757511,661.21,660.85,0.30264053]
[1748991846439,1.01757511,661.2,660.85,0.30264053]
[1748991846637,1.01757511,661.19,660.85,0.30264053]
[1748991846837,1.01757511,661.18,660.85,0.30264053]
[1748991847034,1.01757511,661.17,660.85,0.30264053]
[1748991847234,1.01757511,661.16,660.85,0.30264053]
[1748991847434,1.13082617,661.28,660.85,0.30264053]
[1748991847435,1.01757511,661.15,660.85,0.30264053]
[1748991847639,1.01757511,661.14,660.85,0.30264053]
[1748991847838,1.01757511,661.13,660.85,0.30264053]
[1748991848038,1.01757511,661.12,660.85,0.30264053]
[1748991848240,1.01757511,661.11,660.85,0.30264053]
[1748991848440,1.01757511,661.1,660.85,0.30264053]
[1748991848641,1.01776814,661.09,660.85,0.30264053]
[1748991848837,1.01776814,661.08,660.85,0.30264053]
[1748991849041,1.01776814,661.07,660.85,0.30264053]
[1748991849236,1.01776814,661.06,660.85,0.30264053]
[1748991849440,1.01776814,661.05,660.85,0.30264053]
[1748991849641,1.01776814,661.04,660.85,0.30264053]
[1748991849842,1.01776814,661.03,660.85,0.30264053]
[1748991850142,1.01776814,661.02,660.85,0.30264053]
[1748991850345,1.13023631,661.29,660.85,0.30264053]
[1748991850545,1.01747522,661.28,660.85,0.30264053]
[1748991850742,1.01747522,661.27,660.85,0.30264053]
[1748991850939,1.01747522,661.26,660.85,0.30264053]
[1748991851140,1.01747522,661.25,660.85,0.30264053]
[1748991851451,1.01747522,661.24,660.85,0.30264053]
[1748991851639,1.01747522,661.23,660.85,0.30264053]
[1748991851846,1.01747522,661.22,660.85,0.30264053]
[1748991852043,1.01747522,661.21,660.85,0.30264053]
[1748991852245,1.01747522,661.2,660.85,0.30264053]
[1748991852443,1.13023631,661.28,660.85,0.30264053]
[1748991852444,1.01747522,661.19,660.85,0.30264053]
[1748991852647,1.01723689,661.18,660.85,0.30264053]
[1748991852850,1.01723689,661.17,660.85,0.30264053]
[1748991853046,1.01723689,661.16,660.85,0.30264053]
[1748991853251,1.01723689,661.15,660.85,0.30264053]
[1748991853446,1.01723689,661.14,660.85,0.30264053]
[1748991853650,1.01723689,661.13,660.85,0.30264053]
[1748991853845,1.01723689,661.12,660.85,0.30264053]
[1748991854048,1.01723689,661.11,660.85,0.30264053]
[1748991854348,1.01723689,661.1,660.85,0.30264053]
[1748991854551,1.01723689,661.09,660.85,0.30264053]
[1748991854745,1.01723689,661.08,660.85,0.30264053]
[1748991854945,1.1296272,661.3,660.85,0.30264053]
[1748991855146,1.0167386,661.29,660.85,0.30264053]
[1748991855347,1.0167386,661.28,660.85,0.30264053]
[1748991855549,1.0167386,661.27,660.85,0.30264053]
[1748991855747,1.0167386,661.26,660.85,0.30264053]
[1748991855949,1.0167386,661.25,660.85,0.30264053]
[1748991856150,1.0167386,661.24,660.85,0.30264053]
[1748991856350,1.0167386,661.23,660.85,0.30264053]
[1748991856549,1.01650818,661.22,660.85,0.30264053]
[1748991856850,1.01650818,661.21,660.85,0.30264053]
[1748991857046,1.01650818,661.2,660.85,0.30264053]
[1748991857350,1.01650818,661.19,660.85,0.30264053]
[1748991857551,1.01650818,661.18,660.85,0.30264053]
[1748991857751,1.01650818,661.17,660.85,0.30264053]
[1748991857948,1.01650818,661.16,660.85,0.30264053]
[1748991858152,1.01650818,661.15,660.85,0.30264053]
[1748991858452,1.01650818,661.14,660.85,0.30264053]
[1748991858647,1.01650818,661.13,660.85,0.30264053]
[1748991858845,3.76960388,662.02,660.85,0.30264053]
[1748991858846,1.01650818,661.12,660.85,0.30264053]
[1748991859047,1.01650818,661.11,660.85,0.30264053]
[1748991859248,1.01650818,661.1,660.85,0.30264053]
[1748991859451,1.12905225,661.32,660.85,0.30264053]
[1748991859649,2.1453996,661.31,660.85,0.30264053]
[1748991859852,1.01634735,661.3,660.85,0.30264053]
[1748991860148,1.01634735,661.29,660.85,0.30264053]
[1748991860350,1.01634735,661.28,660.85,0.30264053]
[1748991860550,1.01627714,661.27,660.85,0.30264053]
[1748991860852,1.01627714,661.26,660.85,0.30264053]
[1748991861054,1.01627714,661.25,660.85,0.30264053]
[1748991861247,1.01627714,661.24,660.85,0.30264053]
[1748991861449,1.01627714,661.23,660.85,0.30264053]
[1748991861650,1.01627714,661.22,660.85,0.30264053]
[1748991861851,1.01627714,661.21,660.85,0.30264053]
[1748991862051,1.01627714,661.2,660.85,0.30264053]
[1748991862248,1.01627714,661.19,660.85,0.30264053]
[1748991862455,1.01627714,661.18,660.85,0.30264053]
[1748991862664,1.01627714,661.17,660.85,0.30264053]
[1748991862953,1.01627714,661.16,660.85,0.30264053]
[1748991863152,1.01627714,661.15,660.85,0.30264053]
[1748991863351,1.01627714,661.14,660.85,0.30264053]
[1748991863652,1.01627714,661.13,660.85,0.30264053]
[1748991863853,1.12877148,661.33,660.85,0.30264053]
[1748991864052,1.01585803,661.32,660.85,0.30264053]
[1748991864254,1.01585803,661.31,660.85,0.30264053]
[1748991864454,1.01593548,661.3,660.85,0.30264053]
[1748991864651,1.01593548,661.29,660.85,0.30264053]
[1748991864855,1.01593548,661.28,660.85,0.30264053]
[1748991865054,1.01593548,661.27,660.85,0.30264053]
[1748991865351,1.01593548,661.26,660.85,0.30264053]
[1748991865557,1.01593548,661.25,660.85,0.30264053]
[1748991865855,1.01593548,661.24,660.85,0.30264053]
[1748991866055,1.01593548,661.23,660.85,0.30264053]
[1748991866257,1.01593548,661.22,660.85,0.30264053]
[1748991866457,1.01593548,661.21,660.85,0.30264053]
[1748991866651,1.01593548,661.2,660.85,0.30264053]
[1748991866951,1.01593548,661.19,660.85,0.30264053]
[1748991867256,1.01593548,661.18,660.85,0.30264053]
[1748991867456,1.01593548,661.17,660.85,0.30264053]
[1748991867656,1.01593548,661.16,660.85,0.30264053]
[1748991867858,1.01593548,661.15,660.85,0.30264053]
[1748991868054,1.01593548,661.14,660.85,0.30264053]
[1748991868255,1.50523138,661.43,660.85,0.30264053]
[1748991868454,1.12906237,661.32,660.85,0.30264053]
[1748991868656,1.01602778,661.31,660.85,0.30264053]
[1748991868859,1.01602778,661.3,660.85,0.30264053]
[1748991869054,1.01602778,661.29,660.85,0.30264053]
[1748991869358,1.01602778,661.28,660.85,0.30264053]
[1748991869654,1.01602778,661.27,660.85,0.30264053]
[1748991869858,1.01602778,661.26,660.85,0.30264053]
[1748991870051,1.01602778,661.25,660.85,0.30264053]
[1748991870255,1.01602778,661.24,660.85,0.30264053]
[1748991870456,3.76960388,661.95,660.85,0.30264053]
[1748991874561,2.7874928,672.5,660.87,0.47896942]
[1748991874756,2.7874928,670.41,660.88,0.3026268]
[1748991876563,2.7874928,670.41,660.9,0.47896942]
[1748991876759,2.7874928,670.41,660.91,0.30261306]